[Event "Vegagatan U1800-B"]
[Site "Goteborgs Schackcentrum, Vegatan 20, Gothenburg, Sweden"]
[Date "2025.05.03"]
[Round "3.3"]
[White "Bjureblad, Martin"]
[Black "Olivius, Sten"]
[Result "0-1"]
[TimeControl "30 minutes + 30 seconds per move from move one"]
[WhiteFideId "1717928"]
[BlackFideId "1788728"]
[WhiteElo "1645"]
[BlackElo "1678"]

1. e4 {[%clk 00:30:58]} {[%emt 00:00:01]} e6 {[%clk 00:31:17]} {[%emt
00:00:13]} 2. Nf3 {[%clk 00:31:13]} {[%emt 00:00:14]} d5 {[%clk 00:31:39]}
{[%emt 00:00:09]} 3. exd5 {[%clk 00:31:33]} {[%emt 00:00:10]} exd5 {[%clk
00:32:06]} {[%emt 00:00:04]} 4. d4 {[%clk 00:31:53]} {[%emt 00:00:09]} Nf6
{[%clk 00:32:28]} {[%emt 00:00:08]} 5. Be2 {[%clk 00:31:22]} {[%emt 00:01:01]}
Bd6 {[%clk 00:32:44]} {[%emt 00:00:14]} 6. Nc3 {[%clk 00:31:39]} {[%emt
00:00:13]} O-O {[%clk 00:33:00]} {[%emt 00:00:15]} 7. Bg5 {[%clk 00:31:54]}
{[%emt 00:00:14]} c6 {[%clk 00:33:21]} {[%emt 00:00:09]} 8. O-O {[%clk
00:31:45]} {[%emt 00:00:40]} Bf5 {[%clk 00:33:35]} {[%emt 00:00:15]} 9. Nh4
{[%clk 00:31:43]} {[%emt 00:00:31]} Be6 {[%clk 00:33:42]} {[%emt 00:00:24]} 10.
f4 {[%clk 00:31:13]} {[%emt 00:00:59]} h6 {[%clk 00:34:05]} {[%emt 00:00:07]}
11. Bxf6 {[%clk 00:30:54]} {[%emt 00:00:50]} Qxf6 {[%clk 00:34:27]} {[%emt
00:00:09]} 12. g3 {[%clk 00:30:32]} {[%emt 00:00:50]} a5 {[%clk 00:34:18]}
{[%emt 00:00:41]} 13. a4 {[%clk 00:30:39]} {[%emt 00:00:23]} Na6 {[%clk
00:34:28]} {[%emt 00:00:20]} 14. f5 {[%clk 00:28:47]} {[%emt 00:02:21]} Bd7
{[%clk 00:34:46]} {[%emt 00:00:13]} 15. Kg2 {[%clk 00:28:02]} {[%emt 00:01:14]}
Rfe8 {[%clk 00:34:35]} {[%emt 00:00:41]} 16. Bxa6 {[%clk 00:26:51]} {[%emt
00:01:41]} Rxa6 {[%clk 00:34:53]} {[%emt 00:00:13]} 17. Qd3 {[%clk 00:24:51]}
{[%emt 00:02:28]} Raa8 {[%clk 00:34:47]} {[%emt 00:00:36]} 18. Ne2 {[%clk
00:22:56]} {[%emt 00:02:24]} Re4 {[%clk 00:34:29]} {[%emt 00:00:50]} 19. c3
{[%clk 00:21:17]} {[%emt 00:02:09]} Rae8 {[%clk 00:34:27]} {[%emt 00:00:32]} 20.
Rf2 {[%clk 00:19:11]} {[%emt 00:02:35]} Qg5 {[%clk 00:33:44]} {[%emt 00:01:14]}
21. Kh1 {[%clk 00:17:09]} {[%emt 00:02:30]} c5 {[%emt 00:03:08]} 22. Raf1
{[%clk 00:14:46]} {[%emt 00:02:39]} c4 {[%clk 00:30:42]} {[%emt 00:01:10]} 23.
Qc2 {[%clk 00:13:57]} {[%emt 00:01:16]} Bxa4 {[%clk 00:30:38]} {[%emt
00:00:38]} 24. Qxa4 {[%clk 00:13:11]} {[%emt 00:01:15]} Rxe2 {[%clk 00:31:03]}
{[%emt 00:00:06]} 25. Qxa5 {[%clk 00:08:36]} {[%emt 00:05:04]} Bxg3 {[%clk
00:30:46]} {[%emt 00:00:47]} 26. Nf3 {[%clk 00:05:41]} {[%emt 00:03:25]} Qh5
{[%clk 00:30:26]} {[%emt 00:00:50]} 27. Rg2 {[%clk 00:03:34]} {[%emt 00:02:36]}
Qh3 {[%clk 00:28:37]} {[%emt 00:02:20]} 28. Rfg1 {[%clk 00:02:17]} {[%emt
00:01:47]} Rxg2 {[%clk 00:28:24]} {[%emt 00:00:43]} 29. Rxg2 {[%clk 00:02:09]}
{[%emt 00:00:37]} Bh4 {[%clk 00:25:32]} {[%emt 00:03:23]} 30. Qxd5 {[%clk
00:01:39]} {[%emt 00:00:59]} Re3 {[%clk 00:25:28]} {[%emt 00:00:35]} 31. Ng1
{[%clk 00:01:32]} {[%emt 00:00:37]} Re1 {[%clk 00:25:46]} {[%emt 00:00:12]} 32.
Qxb7 {[%clk 00:01:12]} {[%emt 00:00:49]} Qe3 {[%clk 00:25:48]} {[%emt
00:00:27]} 33. Qc8+ {[%clk 00:00:52]} {[%emt 00:00:52]} Kh7 {[%clk 00:26:10]}
{[%emt 00:00:08]} 34. Qc6 {[%clk 00:01:06]} {[%emt 00:00:16]} Bf2 {[%clk
00:26:05]} {[%emt 00:00:35]} 35. f6 {[%clk 00:00:48]} {[%emt 00:00:48]} Rxg1+
{[%clk 00:25:57]} {[%emt 00:00:38]} 36. Rxg1 {[%clk 00:01:14]} {[%emt
00:00:05]} Bxg1 {[%clk 00:26:12]} {[%emt 00:00:15]} 37. fxg7 {[%clk 00:01:31]}
{[%emt 00:00:12]} Bf2 {[%clk 00:26:12]} {[%emt 00:00:31]} 38. g8=Q+ Kxg8 {[%clk
00:26:38]} 39. Qc8+ {[%clk 00:01:25]} {[%emt 00:00:33]} Kg7 {[%clk 00:26:32]}
{[%emt 00:00:36]} 40. Qg4+ {[%clk 00:01:25]} {[%emt 00:00:30]} Kf6 {[%clk
00:26:43]} {[%emt 00:00:20]} 41. Kg2 {[%clk 00:01:20]} {[%emt 00:00:33]} Be1
{[%clk 00:27:02]} {[%emt 00:00:11]} 42. Kh1 {[%clk 00:00:00]} 0-1

[Event "Vegagatan U1800-B"]
[Site "Goteborgs Schackcentrum, Vegatan 20, Gothenburg, Sweden"]
[Date "2025.05.03"]
[Round "3.4"]
[White "Hemmerling, Martin"]
[Black "Vairav, Vihaan"]
[Result "1/2-1/2"]
[TimeControl "30 minutes + 30 seconds per move from move one"]
[WhiteFideId "1795724"]
[BlackFideId "1783971"]
[WhiteElo "1788"]
[BlackElo "1666"]

1. d4 {[%clk 00:30:57]} {[%emt 00:00:03]} Nf6 {[%clk 00:30:45]} {[%emt
00:00:16]} 2. Nc3 {[%clk 00:31:18]} {[%emt 00:00:08]} d5 {[%clk 00:31:09]}
{[%emt 00:00:06]} 3. Bf4 {[%clk 00:31:42]} {[%emt 00:00:07]} c5 {[%clk
00:31:26]} {[%emt 00:00:13]} 4. e3 {[%clk 00:30:46]} {[%emt 00:01:25]} a6
{[%clk 00:31:50]} {[%emt 00:00:07]} 5. Nf3 {[%clk 00:30:37]} {[%emt 00:00:38]}
cxd4 {[%clk 00:31:17]} {[%emt 00:01:04]} 6. exd4 {[%clk 00:30:55]} {[%emt
00:00:12]} Bg4 {[%clk 00:31:36]} {[%emt 00:00:11]} 7. h3 {[%clk 00:29:57]}
{[%emt 00:01:27]} Bh5 {[%clk 00:31:46]} {[%emt 00:00:18]} 8. Bd3 {[%clk
00:25:47]} {[%emt 00:04:42]} Nc6 {[%clk 00:29:46]} {[%emt 00:02:31]} 9. g4
{[%clk 00:23:38]} {[%emt 00:02:39]} Bg6 {[%clk 00:29:36]} {[%emt 00:00:39]} 10.
Bxg6 {[%clk 00:23:11]} {[%emt 00:00:56]} hxg6 {[%clk 00:29:57]} {[%emt
00:00:10]} 11. Qd2 {[%clk 00:21:17]} {[%emt 00:02:24]} e6 {[%clk 00:29:13]}
{[%emt 00:01:13]} 12. a3 {[%clk 00:21:30]} {[%emt 00:00:19]} Nd7 {[%clk
00:26:16]} {[%emt 00:03:25]} 13. Ne2 {[%clk 00:21:18]} {[%emt 00:00:43]} Nb6
{[%clk 00:26:26]} {[%emt 00:00:22]} 14. b3 {[%clk 00:20:58]} {[%emt 00:00:49]}
a5 {[%clk 00:24:44]} {[%emt 00:02:11]} 15. a4 {[%clk 00:18:45]} {[%emt
00:02:43]} Qe7 {[%clk 00:21:23]} {[%emt 00:03:49]} 16. c3 {[%clk 00:18:33]}
{[%emt 00:00:45]} Qd7 {[%clk 00:21:02]} {[%emt 00:00:50]} 17. Kf1 {[%clk
00:18:36]} {[%emt 00:00:27]} Bd6 {[%emt 00:00:42]} 18. Kg2 {[%clk 00:15:24]}
{[%emt 00:03:39]} Rc8 {[%clk 00:18:59]} {[%emt 00:02:24]} 19. Rae1 {[%clk
00:14:40]} {[%emt 00:01:14]} Qc7 {[%clk 00:18:14]} {[%emt 00:01:14]} 20. Bxd6
{[%clk 00:14:34]} {[%emt 00:00:36]} Qxd6 {[%clk 00:18:13]} {[%emt 00:00:32]} 21.
Qf4 {[%clk 00:09:11]} {[%emt 00:05:53]} Qxf4 {[%clk 00:18:16]} {[%emt
00:00:27]} 22. Nxf4 {[%clk 00:09:34]} {[%emt 00:00:05]} Nd8 {[%clk 00:16:40]}
{[%emt 00:02:08]} 23. Re3 {[%clk 00:09:48]} {[%emt 00:00:16]} Nd7 {[%clk
00:15:08]} {[%emt 00:02:02]} 24. Nxd5 {[%clk 00:10:08]} {[%emt 00:00:10]} Nc6
{[%clk 00:14:11]} {[%emt 00:01:27]} 25. Nf4 {[%clk 00:09:50]} {[%emt 00:00:47]}
O-O {[%clk 00:14:10]} {[%emt 00:00:32]} 26. Nd3 {[%clk 00:08:31]} {[%emt
00:01:50]} Na7 {[%clk 00:13:45]} {[%emt 00:00:54]} 27. Nde5 {[%clk 00:08:51]}
{[%emt 00:00:11]} Nf6 {[%clk 00:13:25]} {[%emt 00:00:49]} 28. c4 {[%clk
00:08:43]} {[%emt 00:00:38]} Rfd8 {[%clk 00:12:54]} {[%emt 00:01:00]} 29. Rd3
{[%clk 00:08:50]} {[%emt 00:00:23]} Nc6 {[%clk 00:12:32]} {[%emt 00:00:53]} 30.
Nxc6 {[%clk 00:08:45]} {[%emt 00:00:35]} bxc6 {[%clk 00:12:44]} {[%emt
00:00:18]} 31. Ne5 {[%clk 00:07:45]} {[%emt 00:01:30]} Nd7 {[%clk 00:11:07]}
{[%emt 00:02:07]} 32. Rhd1 {[%clk 00:07:43]} {[%emt 00:00:32]} Nxe5 {[%clk
00:10:50]} {[%emt 00:00:48]} 33. dxe5 {[%clk 00:08:04]} {[%emt 00:00:09]} Rxd3
{[%clk 00:11:07]} {[%emt 00:00:13]} 34. Rxd3 {[%clk 00:08:30]} {[%emt
00:00:03]} Kf8 {[%clk 00:11:06]} {[%emt 00:00:31]} 35. c5 {[%clk 00:08:46]}
{[%emt 00:00:15]} Ke7 {[%clk 00:11:20]} {[%emt 00:00:16]} 36. Kf3 {[%clk
00:09:02]} {[%emt 00:00:13]} Rd8 {[%clk 00:11:05]} {[%emt 00:00:46]} 37. Rxd8
{[%clk 00:09:23]} {[%emt 00:00:08]} Kxd8 {[%clk 00:11:30]} {[%emt 00:00:06]} 38.
Ke3 {[%clk 00:09:44]} {[%emt 00:00:09]} f6 {[%clk 00:11:11]} {[%emt 00:00:49]}
39. f4 {[%clk 00:09:58]} {[%emt 00:00:15]} f5 {[%clk 00:11:10]} {[%emt
00:00:32]} 40. g5 {[%clk 00:10:14]} {[%emt 00:00:14]} Kd7 {[%clk 00:11:08]}
{[%emt 00:00:32]} 41. Kd4 {[%clk 00:10:19]} {[%emt 00:00:23]} Kc7 {[%clk
00:11:20]} {[%emt 00:00:19]} 42. Kc4 {[%clk 00:10:42]} {[%emt 00:00:06]} Kb7
{[%clk 00:11:17]} {[%emt 00:00:35]} 43. b4 {[%clk 00:11:02]} {[%emt 00:00:09]}
axb4 {[%clk 00:11:38]} {[%emt 00:00:09]} 44. Kxb4 {[%clk 00:11:25]} {[%emt
00:00:07]} Ka7 {[%clk 00:12:02]} {[%emt 00:00:05]} 45. Ka5 {[%clk 00:07:39]}
1/2-1/2

[Event "Vegagatan U1800-B"]
[Site "Goteborgs Schackcentrum, Vegatan 20, Gothenburg, Sweden"]
[Date "2025.05.03"]
[Round "4.1"]
[White "Zein, Khalil"]
[Black "Kadyr, Mustafa"]
[Result "0-1"]
[TimeControl "30 minutes + 30 seconds per move from move one"]
[WhiteFideId "1776118"]
[BlackFideId "1772147"]
[WhiteElo "1656"]
[BlackElo "1686"]

1. e4 {[%clk 00:30:44]} {[%emt 00:00:15]} e5 {[%clk 00:30:36]} {[%emt
00:00:24]} 2. Nf3 {[%clk 00:31:09]} {[%emt 00:00:06]} Nc6 {[%clk 00:31:04]}
{[%emt 00:00:02]} 3. Bc4 {[%clk 00:31:32]} {[%emt 00:00:06]} Bc5 {[%clk
00:29:54]} {[%emt 00:01:40]} 4. c3 {[%clk 00:31:35]} {[%emt 00:00:27]} Nf6
{[%clk 00:28:46]} {[%emt 00:01:39]} 5. d3 {[%clk 00:31:31]} {[%emt 00:00:33]}
h6 {[%clk 00:28:46]} {[%emt 00:00:30]} 6. b4 {[%clk 00:31:59]} {[%emt
00:00:02]} Bb6 {[%clk 00:29:10]} {[%emt 00:00:07]} 7. b5 {[%clk 00:32:27]}
{[%emt 00:00:02]} Na5 {[%clk 00:29:21]} {[%emt 00:00:18]} 8. Nxe5 {[%clk
00:32:51]} {[%emt 00:00:05]} Nxc4 {[%clk 00:29:30]} {[%emt 00:00:23]} 9. Nxc4
{[%clk 00:33:10]} {[%emt 00:00:10]} O-O {[%clk 00:29:50]} {[%emt 00:00:10]} 10.
O-O {[%clk 00:31:39]} {[%emt 00:02:01]} d5 {[%clk 00:30:06]} {[%emt 00:00:14]}
11. Nxb6 {[%clk 00:32:04]} {[%emt 00:00:05]} axb6 {[%clk 00:30:32]} {[%emt
00:00:04]} 12. e5 {[%clk 00:32:29]} {[%emt 00:00:06]} Nh7 {[%clk 00:30:28]}
{[%emt 00:00:34]} 13. d4 {[%clk 00:32:27]} {[%emt 00:00:32]} Bd7 {[%clk
00:30:40]} {[%emt 00:00:15]} 14. Qb3 {[%clk 00:31:32]} {[%emt 00:01:28]} c6
{[%clk 00:30:34]} {[%emt 00:00:36]} 15. bxc6 {[%clk 00:31:41]} {[%emt
00:00:20]} bxc6 {[%clk 00:30:56]} {[%emt 00:00:08]} 16. Ba3 {[%clk 00:31:15]}
{[%emt 00:00:55]} Re8 {[%clk 00:30:28]} {[%emt 00:00:56]} 17. Bd6 {[%clk
00:31:43]} {[%emt 00:00:05]} f6 {[%clk 00:29:10]} {[%emt 00:01:45]} 18. f4
{[%clk 00:31:23]} {[%emt 00:00:53]} fxe5 {[%clk 00:28:16]} {[%emt 00:01:24]} 19.
fxe5 {[%clk 00:31:12]} {[%emt 00:00:41]} Ng5 {[%clk 00:28:30]} {[%emt
00:00:15]} 20. c4 {[%clk 00:30:20]} {[%emt 00:01:23]} Be6 {[%clk 00:26:54]}
{[%emt 00:02:06]} 21. c5 {[%clk 00:30:35]} {[%emt 00:00:15]} bxc5 {[%clk
00:27:03]} {[%emt 00:00:22]} 22. Bxc5 {[%clk 00:29:05]} {[%emt 00:02:00]} Ne4
{[%clk 00:26:29]} {[%emt 00:01:03]} 23. Bb4 {[%clk 00:24:52]} {[%emt 00:04:43]}
Qb6 {[%clk 00:25:53]} {[%emt 00:00:55]} 24. Rc1 {[%clk 00:19:24]} {[%emt
00:06:08]} Qxd4+ {[%clk 00:25:26]} {[%emt 00:00:58]} 25. Kh1 {[%clk 00:19:35]}
{[%emt 00:00:18]} Nf2+ {[%clk 00:25:51]} {[%emt 00:00:06]} 26. Kg1 {[%clk
00:19:38]} {[%emt 00:00:27]} Nh3+ {[%clk 00:26:17]} {[%emt 00:00:03]} 27. Kh1
{[%clk 00:19:57]} {[%emt 00:00:11]} Qg1+ {[%clk 00:26:39]} {[%emt 00:00:09]} 28.
Rxg1 {[%clk 00:19:57]} {[%emt 00:00:02]} Nf2# {[%clk 00:26:39]} {[%emt
00:00:02]} 0-1

[Event "Vegagatan U1800-B"]
[Site "Goteborgs Schackcentrum, Vegatan 20, Gothenburg, Sweden"]
[Date "2025.05.03"]
[Round "4.2"]
[White "Hassinge, Ove"]
[Black "Bjureblad, Martin"]
[Result "1-0"]
[TimeControl "30 minutes + 30 seconds per move from move one"]
[WhiteFideId "1774530"]
[BlackFideId "1717928"]
[WhiteElo "1652"]
[BlackElo "1645"]

1. e4 {[%clk 00:30:55]} {[%emt 00:00:04]} c5 {[%clk 00:30:54]} {[%emt
00:00:07]} 2. Nf3 {[%clk 00:31:18]} {[%emt 00:00:06]} Nc6 {[%clk 00:31:06]}
{[%emt 00:00:18]} 3. d4 {[%clk 00:31:40]} {[%emt 00:00:08]} cxd4 {[%clk
00:31:27]} {[%emt 00:00:10]} 4. Nxd4 {[%clk 00:32:03]} {[%emt 00:00:06]} e5
{[%clk 00:31:41]} {[%emt 00:00:16]} 5. Nb5 {[%clk 00:32:15]} {[%emt 00:00:19]}
d6 {[%clk 00:31:56]} {[%emt 00:00:15]} 6. N1c3 {[%clk 00:32:22]} {[%emt
00:00:23]} a6 {[%clk 00:32:17]} {[%emt 00:00:08]} 7. Na3 {[%clk 00:32:47]}
{[%emt 00:00:05]} b5 {[%clk 00:32:16]} {[%emt 00:00:32]} 8. Nd5 {[%clk
00:32:52]} {[%emt 00:00:24]} Nf6 {[%clk 00:32:36]} {[%emt 00:00:10]} 9. Bd3
{[%clk 00:32:23]} {[%emt 00:00:59]} Be7 {[%clk 00:32:43]} {[%emt 00:00:22]} 10.
O-O {[%clk 00:32:10]} {[%emt 00:00:43]} O-O {[%clk 00:32:57]} {[%emt 00:00:17]}
11. c4 {[%clk 00:31:55]} {[%emt 00:00:45]} bxc4 {[%clk 00:32:38]} {[%emt
00:00:50]} 12. Nxc4 {[%clk 00:32:09]} {[%emt 00:00:16]} Rb8 {[%clk 00:31:40]}
{[%emt 00:01:27]} 13. b3 {[%emt 00:06:03]} Nb4 {[%clk 00:30:17]} {[%emt
00:00:24]} 14. Nxb4 {[%clk 00:26:06]} {[%emt 00:02:29]} Rxb4 {[%clk 00:30:29]}
{[%emt 00:00:17]} 15. Ba3 {[%clk 00:25:27]} {[%emt 00:01:10]} Rb8 {[%clk
00:30:32]} {[%emt 00:00:27]} 16. Ne3 {[%clk 00:24:37]} {[%emt 00:01:21]} Bb7
{[%clk 00:30:30]} {[%emt 00:00:30]} 17. f3 {[%clk 00:23:57]} {[%emt 00:01:11]}
Qb6 {[%clk 00:30:24]} {[%emt 00:00:35]} 18. Qd2 {[%clk 00:22:48]} {[%emt
00:01:40]} Rfe8 {[%clk 00:29:04]} {[%emt 00:01:48]} 19. Kh1 {[%clk 00:22:59]}
{[%emt 00:00:20]} d5 {[%clk 00:28:32]} {[%emt 00:01:02]} 20. Bxe7 {[%clk
00:22:54]} {[%emt 00:00:36]} Rxe7 {[%clk 00:28:41]} {[%emt 00:00:22]} 21. exd5
{[%clk 00:21:47]} {[%emt 00:01:37]} Rd8 {[%clk 00:27:48]} {[%emt 00:01:21]} 22.
Nc4 {[%emt 00:02:07]} Qd4 {[%clk 00:26:53]} {[%emt 00:01:21]} 23. d6 {[%clk
00:19:44]} {[%emt 00:01:01]} Ree8 {[%clk 00:25:13]} {[%emt 00:02:08]} 24. Rad1
{[%clk 00:19:35]} {[%emt 00:00:41]} Qh4 {[%clk 00:23:33]} {[%emt 00:02:10]} 25.
Qb4 {[%clk 00:18:30]} {[%emt 00:01:35]} Bc8 {[%clk 00:20:34]} {[%emt 00:03:27]}
26. Qa5 {[%clk 00:17:56]} {[%emt 00:01:06]} Nh5 {[%clk 00:19:37]} {[%emt
00:01:25]} 27. Qe1 {[%clk 00:16:49]} {[%emt 00:01:39]} Qf6 {[%clk 00:18:08]}
{[%emt 00:01:57]} 28. Qe4 {[%clk 00:16:31]} {[%emt 00:00:49]} g6 {[%clk
00:17:58]} {[%emt 00:00:40]} 29. Rfe1 {[%clk 00:15:28]} {[%emt 00:01:34]} Bf5
{[%clk 00:17:30]} {[%emt 00:00:57]} 30. Qe3 {[%clk 00:14:50]} {[%emt 00:01:09]}
Be6 {[%clk 00:14:13]} {[%emt 00:03:44]} 31. Qxe5 {[%clk 00:14:12]} {[%emt
00:01:11]} Qh4 {[%clk 00:13:09]} {[%emt 00:01:32]} 32. g3 {[%clk 00:10:19]}
{[%emt 00:04:25]} Qf6 {[%clk 00:12:00]} {[%emt 00:01:37]} 33. Qxf6 {[%clk
00:10:03]} {[%emt 00:00:48]} Nxf6 {[%clk 00:12:18]} {[%emt 00:00:11]} 34. Bf1
{[%clk 00:09:11]} {[%emt 00:01:23]} Nd5 {[%clk 00:10:59]} {[%emt 00:01:49]} 35.
Rd2 {[%clk 00:07:53]} {[%emt 00:01:48]} Kg7 {[%clk 00:10:24]} {[%emt 00:01:05]}
36. Kg1 {[%clk 00:06:59]} {[%emt 00:01:24]} h5 {[%clk 00:10:05]} {[%emt
00:00:48]} 37. Kf2 {[%clk 00:06:56]} {[%emt 00:00:34]} Rf8 {[%clk 00:09:59]}
{[%emt 00:00:36]} 38. Re5 {[%clk 00:06:09]} {[%emt 00:01:16]} Nc3 {[%clk
00:08:07]} {[%emt 00:02:22]} 39. Ra5 {[%clk 00:05:10]} {[%emt 00:01:30]} Bc8
{[%clk 00:07:22]} {[%emt 00:01:13]} 40. Nb6 {[%clk 00:03:46]} {[%emt 00:01:56]}
Bb7 {[%clk 00:04:57]} {[%emt 00:02:55]} 41. Bxa6 {[%clk 00:03:48]} {[%emt
00:00:28]} Bc6 {[%clk 00:03:50]} {[%emt 00:01:37]} 42. Bf1 {[%clk 00:03:09]}
{[%emt 00:01:10]} Nb1 {[%clk 00:03:56]} {[%emt 00:00:23]} 43. Rd4 {[%clk
00:02:15]} {[%emt 00:01:24]} Rb8 {[%clk 00:03:05]} {[%emt 00:01:21]} 44. Nc4
{[%clk 00:02:03]} {[%emt 00:00:42]} Nc3 {[%clk 00:03:19]} {[%emt 00:00:14]} 45.
Bh3 {[%clk 00:01:44]} {[%emt 00:00:51]} Nb5 {[%clk 00:03:21]} {[%emt 00:00:28]}
46. Rd2 {[%clk 00:01:49]} {[%emt 00:00:23]} Rfd8 {[%clk 00:03:23]} {[%emt
00:00:30]} 47. Ra6 {[%clk 00:01:13]} {[%emt 00:01:07]} Ba8 {[%clk 00:03:15]}
{[%emt 00:00:36]} 48. Ne5 {[%clk 00:00:45]} {[%emt 00:00:59]} f6 {[%clk
00:03:02]} {[%emt 00:00:43]} 49. Nc6 {[%clk 00:00:59]} {[%emt 00:00:16]} Bxc6
{[%clk 00:02:55]} {[%emt 00:00:36]} 50. Rxc6 {[%clk 00:01:22]} {[%emt
00:00:07]} f5 {[%clk 00:03:06]} {[%emt 00:00:19]} 51. Bf1 {[%clk 00:01:25]}
{[%emt 00:00:28]} Na7 {[%clk 00:02:31]} {[%emt 00:01:05]} 52. Rc7+ {[%clk
00:01:46]} {[%emt 00:00:09]} Kf6 {[%clk 00:02:10]} {[%emt 00:00:51]} 53. Rxa7
{[%clk 00:02:13]} {[%emt 00:00:03]} Rb6 {[%clk 00:02:02]} {[%emt 00:00:38]} 54.
Ra6 {[%clk 00:01:22]} {[%emt 00:01:22]} Rb7 {[%clk 00:02:02]} {[%emt 00:00:30]}
55. Bc4 {[%clk 00:01:30]} {[%emt 00:00:22]} Rbd7 {[%clk 00:02:11]} {[%emt
00:00:20]} 56. a4 {[%clk 00:01:40]} {[%emt 00:00:20]} Rb7 {[%clk 00:02:19]}
{[%emt 00:00:21]} 57. Rd3 {[%clk 00:01:33]} {[%emt 00:00:38]} Kg5 {[%clk
00:02:20]} {[%emt 00:00:29]} 58. h4+ {[%clk 00:01:32]} {[%emt 00:00:32]} Kh6
{[%clk 00:02:26]} {[%emt 00:00:24]} 59. Rc6 {[%clk 00:01:50]} {[%emt 00:00:12]}
Re8 {[%clk 00:02:19]} {[%emt 00:00:36]} 60. Rc7 {[%clk 00:01:50]} {[%emt
00:00:30]} Rbb8 {[%clk 00:01:09]} {[%emt 00:01:40]} 61. d7 {[%clk 00:02:06]}
{[%emt 00:00:14]} Red8 {[%clk 00:01:09]} {[%emt 00:00:31]} 62. Bb5 {[%clk
00:02:20]} {[%emt 00:00:15]} g5 {[%clk 00:00:37]} {[%emt 00:01:02]} 63. hxg5+
{[%clk 00:01:51]} {[%emt 00:01:00]} Kxg5 {[%clk 00:00:51]} {[%emt 00:00:15]} 64.
Rdc3 {[%clk 00:02:07]} {[%emt 00:00:13]} Rxd7 {[%clk 00:00:34]} {[%emt
00:00:48]} 65. Rxd7 {[%clk 00:02:13]} {[%emt 00:00:24]} h4 {[%clk 00:00:47]}
{[%emt 00:00:17]} 66. gxh4+ {[%clk 00:02:04]} {[%emt 00:00:39]} Kxh4 {[%clk
00:01:01]} {[%emt 00:00:16]} 67. Rg7 {[%clk 00:02:26]} {[%emt 00:00:08]} Rd8
{[%clk 00:00:59]} {[%emt 00:00:31]} 68. Rd3 {[%clk 00:02:28]} {[%emt 00:00:29]}
Rc8 {[%clk 00:01:00]} {[%emt 00:00:28]} 69. Bc4 {[%clk 00:02:51]} {[%emt
00:00:08]} Kh5 {[%clk 00:01:02]} {[%emt 00:00:28]} 70. Rd1 {[%clk 00:03:02]}
{[%emt 00:00:20]} Kh6 {[%clk 00:00:34]} {[%emt 00:00:58]} 71. Rg3 {[%clk
00:03:14]} {[%emt 00:00:17]} 1-0